[Event "FIDE Open World Rapid 2024"]
[Site "New York"]
[Date "2024.12.28"]
[Round "8.13"]
[White "Fressinet, Laurent"]
[Black "Batsuren, Dambasuren"]
[Result "1-0"]
[ECO "B10"]
[WhiteElo "2588"]
[BlackElo "2531"]
[Annotator "ChessBase"]
[PlyCount "133"]
[EventDate "2024.12.14"]
[EventType "swiss"]
[EventCountry "USA"]
[SourceTitle "playchess.com"]
[Source "ChessBase"]
[SourceQuality "1"]
[TimeControl "900+10"]

1. e4 {[%emt 0:00:01]} c6 {[%emt 0:00:18]} 2. Nf3 {[%emt 0:00:11]} d5 {[%emt 0:00:02]} 3. e5 {[%emt 0:00:03]} c5 {[%emt 0:02:05]} 4. c4 {[%emt 0:00:07]} d4 {[%emt 0:01:28]} 5. g3 {[%emt 0:00:02]} Nc6 {[%emt 0:00:55]} 6. Bg2 {[%emt 0:00:06]} g6 {[%emt 0:00:12]} 7. d3 {[%emt 0:00:30]} Bg7 {[%emt 0:00:06]} 8. Bf4 {[%emt 0:00:27]} h6 {[%emt 0:00:17]} 9. h4 {[%emt 0:00:35]} Bg4 {[%emt 0:00:08]} 10. Qb3 {[%emt 0:00:29]} Qb6 {[%emt 0:00:22]} 11. Nbd2 {[%emt 0:01:06]} Bf5 {[%emt 0:01:18]} 12. a3 {[%emt 0:02:08]} Qxb3 {[%emt 0:02:51]} 13. Nxb3 {[%emt 0:00:02]} Bxd3 {[%emt 0:00:14]} 14. Nxc5 {[%emt 0:00:55]} Bxc4 {[%emt 0:00:03]} 15. Nd2 {[%emt 0:00:27]} Be6 {[%emt 0:02:20]} 16. Nxe6 {[%emt 0:01:18]} fxe6 {[%emt 0:00:02]} 17. Bxc6+ {[%emt 0:00:45]} bxc6 {[%emt 0:00:01]} 18. g4 {[%emt 0:00:12]} g5 {[%emt 0:01:41]} 19. Bg3 {[%emt 0:00:04]} O-O-O {[%emt 0:01:40]} 20. h5 {[%emt 0:01:00]} Rd5 {[%emt 0:00:55]} 21. Nc4 {[%emt 0:00:19]} Nf6 {[%emt 0:00:48]} 22. exf6 {[%emt 0:00:03]} exf6 {[%emt 0:00:02]} 23. Kd2 {[%emt 0:01:06]} Kd7 {[%emt 0:00:22]} 24. Rhe1 {[%emt 0:00:43]} Rb5 {[%emt 0:00:30]} 25. b4 {[%emt 0:01:04]} Bf8 {[%emt 0:00:15]} 26. Kd3 {[%emt 0:00:19]} c5 {[%emt 0:00:02]} 27. Reb1 {[%emt 0:00:08]} Kc6 {[%emt 0:00:14]} 28. bxc5 {[%emt 0:00:39]} Rxb1 {[%emt 0:00:18]} 29. Rxb1 {[%emt 0:00:02]} Bxc5 {[%emt 0:00:02]} 30. f3 {[%emt 0:00:18]} Rf8 {[%emt 0:00:06]} 31. Na5+ {[%emt 0:00:52]} Kd5 {[%emt 0:00:01]} 32. Rb7 {[%emt 0:00:04]} e5 {[%emt 0:00:10]} 33. Rd7+ {[%emt 0:00:54]} Ke6 {[%emt 0:00:02]} 34. Rh7 {[%emt 0:00:02]} Rc8 {[%emt 0:00:12]} 35. Rxh6 {[%emt 0:01:32]} Bf8 {[%emt 0:00:03]} 36. Rh8 {[%emt 0:00:25]} Rc3+ {[%emt 0:00:01]} 37. Ke2 {[%emt 0:00:07]} Kf7 {[%emt 0:00:33]} 38. Be1 {[%emt 0:00:29]} Re3+ {[%emt 0:00:28]} 39. Kf2 {[%emt 0:00:03]} Kg7 {[%emt 0:00:02]} 40. Rxf8 {[%emt 0:00:06]} Kxf8 {[%emt 0:00:01]} 41. Bd2 {[%emt 0:00:04]} Rd3 {[%emt 0:00:06]} 42. Ke2 {[%emt 0:00:03]} e4 {[%emt 0:00:01]} 43. fxe4 {[%emt 0:00:15]} Rg3 {[%emt 0:00:02]} 44. Nc6 {[%emt 0:01:25]} Rxg4 {[%emt 0:00:10]} 45. Kd3 {[%emt 0:00:26]} Rh4 {[%emt 0:00:12]} 46. Nxa7 {[%emt 0:00:04]} Rxh5 {[%emt 0:00:18]} 47. Nc6 {[%emt 0:00:22]} g4 {[%emt 0:00:35]} 48. Nxd4 {[%emt 0:00:06]} g3 {[%emt 0:00:04]} 49. Ne2 {[%emt 0:00:32]} g2 {[%emt 0:00:03]} 50. Ke3 {[%emt 0:00:12]} Rh2 {[%emt 0:00:32]} 51. a4 {[%emt 0:00:08]} Ke8 {[%emt 0:00:05]} 52. a5 {[%emt 0:00:02]} Kd7 {[%emt 0:00:02]} 53. Bc3 {[%emt 0:00:17]} Rh3+ {[%emt 0:00:24]} 54. Kf2 {[%emt 0:00:02]} Rh4 {[%emt 0:00:02]} 55. Ng3 {[%emt 0:00:15]} Kc6 {[%emt 0:00:24]} 56. Kxg2 {[%emt 0:00:05]} Rf4 {[%emt 0:00:00]} 57. Bd2 {[%emt 0:00:14]} Rh4 {[%emt 0:00:02]} 58. Kf3 {[%emt 0:00:05]} Kb5 {[%emt 0:00:15]} 59. Bc3 {[%emt 0:00:03]} Rh6 {[%emt 0:00:07]} 60. Kg4 {[%emt 0:00:06]} Kc4 {[%emt 0:00:04]} 61. Bd2 {[%emt 0:00:11]} Rg6+ {[%emt 0:00:03]} 62. Kf4 {[%emt 0:00:07]} Kd3 {[%emt 0:00:06]} 63. Be3 {[%emt 0:00:08]} Rg8 {[%emt 0:00:41]} 64. a6 {[%emt 0:00:08]} Kc4 {[%emt 0:00:09]} 65. a7 {[%emt 0:00:02]} Kb5 {[%emt 0:00:04]} 66. Nh5 {[%emt 0:00:05]} Rf8 {[%emt 0:00:17]} 67. Kf5 {[%emt 0:00:04]} 1-0

[Event "FIDE Open World Rapid 2024"]
[Site "New York"]
[Date "2024.12.27"]
[Round "8.14"]
[White "Nepomniachtchi, Ian"]
[Black "Isanzhulov, Arystan"]
[Result "1-0"]
[ECO "B01"]
[WhiteElo "2755"]
[BlackElo "2395"]
[Annotator "TA"]
[PlyCount "71"]
[EventDate "2024.12.14"]
[EventType "swiss"]
[EventCountry "USA"]
[SourceTitle "playchess.com"]
[Source "ChessBase"]
[SourceQuality "1"]
[TimeControl "900+10"]

{[%evp 9,71,45,50,50,59,53,56,43,56,43,46,61,86,37,36,26,93,66,101,85,116,120,106,108,108,106,125,116,202,222,207,216,262,273,256,256,382,382,430,399,414,429,497,497,626,610,796,778,808,708,707,797,946,788,1003,977,1189,1189,1597,1519,29986,29987,29992,29993]} 1. e4 {[%emt 0:02:09]} d5 {[%emt 0:00:11]} 2. exd5 {[%emt 0:00:06]} Qxd5 {[%emt 0:00:02]} 3. Nc3 {[%emt 0:00:01]} Qd8 {[%emt 0:00:01]} 4. d4 {[%emt 0:00:02]} Nf6 {[%emt 0:00:03]} 5. Nf3 {[%emt 0:00:01]} g6 {[%emt 0:00:13]} 6. Bg5 {[%emt 0:00:01]} Bg7 {[%emt 0:00:02]} 7. Qd2 {[%emt 0:00:01]} O-O {[%emt 0:00:15][%cal Oc7c5]} 8. Bh6 {[%emt 0:00:15]} Bg4 {[%emt 0:02:17]} 9. Bxg7 {[%emt 0:00:30]} Kxg7 {[%emt 0:00:03]} 10. Ne5 {[%emt 0:00:02]} Qd6 {[%emt 0:02:56]} 11. f3 {[%emt 0:03:46] White is more active.} (11. h4 $16) 11... Be6 $14 {[%emt 0:00:29]} 12. h4 {[%emt 0:00:05][%cal Oh4h5]} h5 {[%emt 0:01:44]} (12... Nbd7 $11) 13. O-O-O $16 {[%emt 0:00:14]} a6 {[%emt 0:02:18]} 14. g4 {[%emt 0:00:09][%cal Bg2g4,Bg4g5][%mdl 32]} Nc6 {[%emt 0:02:01]} 15. g5 {[%emt 0:00:24]} Nd5 {[%emt 0:01:12][%cal Bf6d5,Bd5b4,Bb4a2][%mdl 32]} 16. Ne4 {[%emt 0:00:23]} Qb4 {[%emt 0:00:01] [#]} 17. Nxc6 $1 {[%emt 0:00:43]} bxc6 {[%emt 0:00:01]} 18. Nc5 {[%emt 0:00:19]} Bf5 {[%emt 0:02:03] [#]} (18... Qxd2+ $16 {might work better.} 19. Rxd2 a5) 19. Qxb4 $1 $18 {[%emt 0:01:17]} (19. Bxa6 Rfb8 20. Qxb4 Nxb4 $19) 19... Nxb4 {[%emt 0:00:02]} 20. c3 {[%emt 0:00:01][%cal Bc2c3,Bc3b4][%mdl 32]} Nxa2+ {[%emt 0:01:20]} 21. Kd2 {[%emt 0:00:00]} Rab8 {[%emt 0:00:01]} 22. b3 {[%emt 0:00:04][%cal Od1a1] and Ra1! should not be overlooked} Rfd8 {[%emt 0:00:01]} (22... Rfe8 $142 23. Ra1 (23. Nxa6 Rxb3 24. Bc4 Rb2+ 25. Ke3 Nxc3 $17) (23. Bxa6 e5 $18) 23... Nxc3) 23. Ra1 {[%emt 0:00:07]} (23. Nxa6 $2 {is the wrong capture.} Rxb3 24. Bc4 Rxc3 (24... Rb2+ $2 25. Ke3 $19) 25. Bxa2 Ra3 $19 (25... Rxf3 $2 26. Bb1 $19) (25... Rc2+ $2 26. Ke3 $19)) (23. Bxa6 Rd5 $18) 23... Nb4 {[%emt 0:00:02]} 24. cxb4 {[%emt 0:00:04]} Rxd4+ {[%emt 0:00:33]} 25. Ke3 {[%emt 0:00:01]} Rbd8 {[%emt 0:00:14]} 26. Bc4 {[%emt 0:00:44]} ({Don't take} 26. Bxa6 Rd2 27. Bc4 Rc2 $18) (26. Rxa6 Rd1 27. Rxc6 Ra8 $18) (26. Nxa6 e5 27. Nc5 (27. Nxc7 Bc2 $18) 27... Rd2 $18) 26... Rd2 {[%emt 0:00:31][%cal Bd4d2,Bd2c2,Bc2c3][%mdl 32]} 27. Rxa6 {[%emt 0:00:05]} Rc2 {[%emt 0:00:14]} 28. Rxc6 {[%emt 0:00:13]} Rc3+ {[%emt 0:00:12]} 29. Kf2 {[%emt 0:00:26]} Rd2+ {[%emt 0:00:06]} 30. Kg3 {[%emt 0:00:02]} Rcc2 {[%emt 0:00:32]} 31. Kf4 {[%emt 0:00:32]} Rc3 {[%emt 0:00:25]} 32. Rxc7 {[%emt 0:00:19]} Rd4+ {[%emt 0:00:12]} 33. Ne4 {[%emt 0:00:36]} Bxe4 {[%emt 0:00:12]} 34. fxe4 {[%emt 0:00:02]} e6 {[%emt 0:00:10]} 35. Ke5 {[%emt 0:00:11]} Rd2 {[%emt 0:00:07]} 36. Rf1 {[%emt 0:00:02]} 1-0

[Event "FIDE Open World Rapid 2024"]
[Site "New York"]
[Date "2024.12.28"]
[Round "8.14"]
[White "Hovhannisyan, Robert"]
[Black "Saraci, Nderim"]
[Result "1/2-1/2"]
[ECO "E14"]
[WhiteElo "2626"]
[BlackElo "2431"]
[Annotator "ChessBase"]
[PlyCount "113"]
[EventDate "2024.12.14"]
[EventType "swiss"]
[EventCountry "USA"]
[SourceTitle "playchess.com"]
[Source "ChessBase"]
[SourceQuality "1"]
[TimeControl "900+10"]

1. Nf3 {[%emt 0:00:02]} d5 {[%emt 0:00:06]} 2. e3 {[%emt 0:00:02]} Nf6 {[%emt 0:00:26]} 3. c4 {[%emt 0:00:02]} e6 {[%emt 0:00:04]} 4. Nc3 {[%emt 0:00:02]} Bd6 {[%emt 0:00:22]} 5. d4 {[%emt 0:00:14]} b6 {[%emt 0:00:23]} 6. b3 {[%emt 0:00:12]} O-O {[%emt 0:00:04]} 7. Bb2 {[%emt 0:00:04]} Bb7 {[%emt 0:00:18]} 8. Bd3 {[%emt 0:00:06]} Nbd7 {[%emt 0:00:22]} 9. O-O {[%emt 0:00:11]} c5 {[%emt 0:00:37]} 10. cxd5 {[%emt 0:00:32]} Nxd5 {[%emt 0:01:30]} 11. Nxd5 {[%emt 0:00:28]} Bxd5 {[%emt 0:00:05]} 12. e4 {[%emt 0:01:56]} Bb7 {[%emt 0:00:04]} 13. d5 {[%emt 0:02:38]} exd5 {[%emt 0:01:06]} 14. exd5 {[%emt 0:00:03]} Nf6 {[%emt 0:00:31]} 15. Qc2 {[%emt 0:01:23]} Bxd5 {[%emt 0:03:59]} 16. Bxf6 {[%emt 0:00:16]} Qxf6 {[%emt 0:00:03]} 17. Bxh7+ {[%emt 0:00:03]} Kh8 {[%emt 0:00:01]} 18. Be4 {[%emt 0:00:04]} Bxe4 {[%emt 0:00:20]} 19. Qxe4 {[%emt 0:00:02]} Rfe8 {[%emt 0:00:02]} 20. Qa4 {[%emt 0:01:54]} Qf4 {[%emt 0:01:59]} 21. Qd7 {[%emt 0:02:10]} Re7 {[%emt 0:03:00]} 22. Qc6 {[%emt 0:01:27]} Rd8 {[%emt 0:01:18]} 23. Rad1 {[%emt 0:00:57]} Rc7 {[%emt 0:01:01]} 24. Qd5 {[%emt 0:00:31]} Be7 {[%emt 0:00:12]} 25. Qh5+ {[%emt 0:00:36]} Kg8 {[%emt 0:00:01]} 26. Rxd8+ {[%emt 0:00:19]} Bxd8 {[%emt 0:00:01]} 27. g3 {[%emt 0:00:33]} Qd6 {[%emt 0:00:28]} 28. Ne5 {[%emt 0:01:17]} Bf6 {[%emt 0:00:04]} 29. Rd1 {[%emt 0:00:38]} Qe7 {[%emt 0:00:09]} 30. Nf3 {[%emt 0:00:06]} b5 {[%emt 0:00:50]} 31. Qd5 {[%emt 0:01:02]} Rc8 {[%emt 0:00:42]} 32. Rc1 {[%emt 0:00:07]} a6 {[%emt 0:00:09]} 33. Kg2 {[%emt 0:00:05]} Qc7 {[%emt 0:00:10]} 34. Rc2 {[%emt 0:00:13]} Qc6 {[%emt 0:00:10]} 35. Qxc6 {[%emt 0:00:30]} Rxc6 {[%emt 0:00:01]} 36. Ne1 {[%emt 0:00:02]} Kf8 {[%emt 0:00:15]} 37. Nd3 {[%emt 0:00:15]} Bd4 {[%emt 0:00:01]} 38. h4 {[%emt 0:00:01]} Ke7 {[%emt 0:00:15]} 39. Kf3 {[%emt 0:00:08]} Rf6+ {[%emt 0:00:16]} 40. Ke2 {[%emt 0:00:06]} Re6+ {[%emt 0:00:08]} 41. Kd1 {[%emt 0:00:02]} Kd6 {[%emt 0:00:04]} 42. Re2 {[%emt 0:00:39]} c4 {[%emt 0:00:20]} 43. bxc4 {[%emt 0:00:03]} bxc4 {[%emt 0:00:01]} 44. Nb4 {[%emt 0:00:10]} Rf6 {[%emt 0:00:18]} 45. f4 {[%emt 0:00:15]} Kc5 {[%emt 0:00:07]} 46. Nc2 {[%emt 0:00:02]} Rb6 {[%emt 0:00:07]} 47. Re8 {[%emt 0:00:14]} Rb1+ {[%emt 0:00:14]} 48. Ke2 {[%emt 0:00:15]} Bf6 {[%emt 0:00:15]} 49. Rc8+ {[%emt 0:00:05]} Kd6 {[%emt 0:00:09]} 50. Rxc4 {[%emt 0:00:02]} Rb2 {[%emt 0:00:07]} 51. a3 {[%emt 0:00:17]} Kd5 {[%emt 0:00:05]} 52. Rc8 {[%emt 0:00:02]} Ke4 {[%emt 0:00:12]} 53. Rc4+ {[%emt 0:00:25]} Kd5 {[%emt 0:00:01]} 54. Rc7 {[%emt 0:00:04]} Ke4 {[%emt 0:00:02]} 55. Rc4+ {[%emt 0:00:16]} Kd5 {[%emt 0:00:01]} 56. Rc7 {[%emt 0:00:10]} Ke4 {[%emt 0:00:01]} 57. Rc4+ {[%emt 0:00:04]} 1/2-1/2

[Event "FIDE Open World Rapid 2024"]
[Site "New York"]
[Date "2024.12.27"]
[Round "8.15"]
[White "So, Wesley"]
[Black "Durarbayli, Vasif"]
[Result "1/2-1/2"]
[ECO "D46"]
[WhiteElo "2747"]
[BlackElo "2622"]
[Annotator "TA"]
[PlyCount "85"]
[EventDate "2024.12.14"]
[EventType "swiss"]
[EventCountry "USA"]
[SourceTitle "playchess.com"]
[Source "ChessBase"]
[SourceQuality "1"]
[TimeControl "900+10"]

{[%evp 18,85,0,7,58,5,25,14,21,30,16,27,32,29,22,33,28,24,37,41,45,34,78,0,0,0,0,0,0,0,0,0,0,0,0,-14,0,0,0,0,0,0,0,0,0,0,0,0,0,0,0,0,0,0,0,0,0,0,0,0,0,0,0,0,0,0,0,0,0,0]} 1. d4 {[%emt 0:00:02]} d5 {[%emt 0:00:02]} 2. c4 {[%emt 0:00:03]} c6 {[%emt 0:00:02]} 3. Nc3 {[%emt 0:00:44]} Nf6 {[%emt 0:00:05]} 4. Nf3 {[%emt 0:00:01]} e6 {[%emt 0:00:01]} 5. e3 {[%emt 0:00:05]} Nbd7 {[%emt 0:00:01]} 6. Qc2 {[%emt 0:00:02]} Bd6 {[%emt 0:00:02]} 7. Bd3 {[%emt 0:00:03]} dxc4 {[%emt 0:00:04]} 8. Bxc4 {[%emt 0:00:02]} b5 {[%emt 0:00:03]} 9. Be2 {[%emt 0:00:21]} O-O {[%emt 0:00:18]} 10. O-O {[%emt 0:00:03]} Be7 {[%emt 0:00:09]} (10... a6 $11) 11. Rd1 {[%emt 0:00:33]} (11. a3 $14) 11... Bb7 $11 {[%emt 0:00:21]} 12. b3 {[%emt 0:00:21]} Qb8 {[%emt 0:00:56]} 13. Bb2 {[%emt 0:00:26]} Rc8 {[%emt 0:01:35] [#]} 14. Ne5 $1 {[%emt 0:05:01]} b4 {[%emt 0:02:53]} 15. Nxd7 {[%emt 0:03:29]} Nxd7 {[%emt 0:00:01]} 16. Na4 {[%emt 0:00:41]} c5 {[%emt 0:00:05]} 17. Qd2 {[%emt 0:00:01]} Bc6 {[%emt 0:02:34]} 18. Nxc5 {[%emt 0:00:34]} Nxc5 {[%emt 0:00:22]} 19. dxc5 {[%emt 0:00:01]} Qb7 {[%emt 0:01:04] [#] Prevents Ba6} 20. f3 {[%emt 0:00:12]} ({White should try} 20. Rac1 $1 $16) 20... Bxc5 {[%emt 0:00:55] The position is equal.} 21. Rac1 {[%emt 0:00:03]} Bf8 {[%emt 0:02:14]} 22. Bd4 {[%emt 0:00:51]} a5 {[%emt 0:02:02]} 23. Bc5 {[%emt 0:00:37]} Bb5 {[%emt 0:00:05]} 24. Bxf8 {[%emt 0:00:07]} Rxf8 {[%emt 0:00:27]} 25. Bxb5 {[%emt 0:00:18]} Qxb5 {[%emt 0:00:01]} 26. Qd3 {[%emt 0:00:02]} Qg5 {[%emt 0:00:13]} 27. f4 {[%emt 0:00:15]} Qh5 {[%emt 0:00:01]} 28. h3 {[%emt 0:00:14]} h6 {[%emt 0:00:01]} 29. Kh2 {[%emt 0:00:02]} Qh4 {[%emt 0:00:10]} 30. Qe4 {[%emt 0:00:54]} Rac8 {[%emt 0:00:45]} 31. Rxc8 {[%emt 0:00:52]} Rxc8 {[%emt 0:00:01][%mdl 4096] Endgame. KQR-KQR} 32. Qb7 {[%emt 0:00:01]} Rd8 {[%emt 0:00:01]} 33. Rd7 {[%emt 0:01:11]} Rxd7 {[%emt 0:00:03]} 34. Qxd7 {[%emt 0:00:03] KQ-KQ} Qh5 {[%emt 0:00:47]} 35. e4 {[%emt 0:00:25][%cal Be3e4,Be4e5][%mdl 32]} Qe2 {[%emt 0:00:55][%csl LRa2,LRe4]} 36. e5 {[%emt 0:00:34]} Qxa2 {[%emt 0:00:15]} 37. Qe8+ $1 {[%emt 0:00:04]} Kh7 {[%emt 0:00:01]} 38. Qxf7 {[%emt 0:00:01]} Qxb3 {[%emt 0:00:57] Hoping for ...Qc4.} 39. f5 {[%emt 0:00:03] Threatening mate with f6.} Qd5 {[%emt 0:00:18]} 40. Qg6+ {[%emt 0:00:11]} Kg8 {[%emt 0:00:20]} 41. Qe8+ {[%emt 0:00:07]} Kh7 {[%emt 0:00:01]} 42. Qg6+ {[%emt 0:00:01]} Kg8 {[%emt 0:00:01]} 43. Qe8+ {[%emt 0:00:13] Weighted Error Value: White=0.06 (flawless) /Black=0.05 (flawless) .  Mistake:       	White=2     	---        OK:         	White=15    	Black=13     Best:        	White=5     	---        Strong:       	White=1     	---} 1/2-1/2

[Event "FIDE Open World Rapid 2024"]
[Site "New York"]
[Date "2024.12.28"]
[Round "8.15"]
[White "Tang, Andrew"]
[Black "Bezold, Michael"]
[Result "1/2-1/2"]
[ECO "E81"]
[WhiteElo "2527"]
[BlackElo "2469"]
[Annotator "ChessBase"]
[PlyCount "151"]
[EventDate "2024.12.14"]
[EventType "swiss"]
[EventCountry "USA"]
[SourceTitle "playchess.com"]
[Source "ChessBase"]
[SourceQuality "1"]
[TimeControl "900+10"]

1. d4 {[%emt 0:00:02]} g6 {[%emt 0:00:10]} 2. c4 {[%emt 0:00:03]} Bg7 {[%emt 0:00:02]} 3. e4 {[%emt 0:00:33]} d6 {[%emt 0:00:08]} 4. Nc3 {[%emt 0:00:08]} Nf6 {[%emt 0:00:13]} 5. Nge2 {[%emt 0:00:03]} O-O {[%emt 0:00:10]} 6. f3 {[%emt 0:00:03]} c6 {[%emt 0:00:57]} 7. Be3 {[%emt 0:00:10]} a6 {[%emt 0:00:06]} 8. c5 {[%emt 0:00:02]} b5 {[%emt 0:00:58]} 9. cxd6 {[%emt 0:00:02]} exd6 {[%emt 0:00:02]} 10. Nf4 {[%emt 0:00:04]} Re8 {[%emt 0:00:27]} 11. Qd2 {[%emt 0:00:03]} Nbd7 {[%emt 0:00:45]} 12. Be2 {[%emt 0:00:03]} Bb7 {[%emt 0:00:33]} 13. O-O {[%emt 0:00:06]} Rc8 {[%emt 0:00:48]} 14. Rfd1 {[%emt 0:01:37]} Qe7 {[%emt 0:00:06]} 15. Rac1 {[%emt 0:01:05]} Nb6 {[%emt 0:02:13]} 16. b3 {[%emt 0:01:20]} Nbd5 {[%emt 0:02:01]} 17. Bf2 {[%emt 0:00:12]} Nxf4 {[%emt 0:00:35]} 18. Qxf4 {[%emt 0:00:04]} Nd7 {[%emt 0:01:04]} 19. Qd2 {[%emt 0:00:55]} h6 {[%emt 0:00:41]} 20. Bf1 {[%emt 0:01:23]} Kh7 {[%emt 0:00:03]} 21. Ne2 {[%emt 0:00:32]} Nf8 {[%emt 0:00:14]} 22. Nf4 {[%emt 0:04:55]} Ne6 {[%emt 0:00:40]} 23. Nxe6 {[%emt 0:00:09]} Qxe6 {[%emt 0:00:02]} 24. Bd3 {[%emt 0:00:10]} Qe7 {[%emt 0:00:38]} 25. b4 {[%emt 0:00:45]} Qd8 {[%emt 0:00:34]} 26. a4 {[%emt 0:00:44]} Qe7 {[%emt 0:00:11]} 27. Bc2 {[%emt 0:01:09]} Rb8 {[%emt 0:00:19]} 28. Bb3 {[%emt 0:00:08]} Rbc8 {[%emt 0:00:33]} 29. Qa2 {[%emt 0:00:49]} Rf8 {[%emt 0:00:13]} 30. Rc2 {[%emt 0:00:59]} Rc7 {[%emt 0:00:57]} 31. Rdc1 {[%emt 0:00:14]} Rfc8 {[%emt 0:00:09]} 32. h3 {[%emt 0:00:18]} Bf6 {[%emt 0:00:28]} 33. Rd1 {[%emt 0:00:36]} Bg7 {[%emt 0:00:15]} 34. Bg3 {[%emt 0:00:33]} Kg8 {[%emt 0:00:54]} 35. Kh2 {[%emt 0:00:11]} Rd7 {[%emt 0:00:17]} 36. Qb1 {[%emt 0:00:14]} Kh7 {[%emt 0:00:12]} 37. Qc1 {[%emt 0:00:26]} Rdd8 {[%emt 0:00:23]} 38. d5 {[%emt 0:00:14]} bxa4 {[%emt 0:00:46]} 39. Ba2 {[%emt 0:00:20]} cxd5 {[%emt 0:00:14]} 40. Bxd5 {[%emt 0:00:01]} Rxc2 {[%emt 0:00:27]} 41. Qxc2 {[%emt 0:00:01]} Bxd5 {[%emt 0:00:25]} 42. Rxd5 {[%emt 0:00:02]} a3 {[%emt 0:00:02]} 43. Ra5 {[%emt 0:00:25]} Bb2 {[%emt 0:00:39]} 44. Qc4 {[%emt 0:00:18]} Qe6 {[%emt 0:00:37]} 45. Qxa6 {[%emt 0:00:07]} d5 {[%emt 0:00:10]} 46. Qxe6 {[%emt 0:00:16]} fxe6 {[%emt 0:00:01]} 47. exd5 {[%emt 0:00:03]} Rxd5 {[%emt 0:00:09]} 48. b5 {[%emt 0:00:09]} Rxb5 {[%emt 0:00:24]} 49. Rxb5 {[%emt 0:00:06]} a2 {[%emt 0:00:01]} 50. Rxb2 {[%emt 0:00:24]} a1=Q {[%emt 0:00:03]} 51. Be5 {[%emt 0:00:04]} Qe1 {[%emt 0:00:10]} 52. Rb7+ {[%emt 0:00:07]} Kg8 {[%emt 0:00:01]} 53. Bf6 {[%emt 0:00:11]} Qe3 {[%emt 0:00:33]} 54. Rb4 {[%emt 0:00:15]} g5 {[%emt 0:00:15]} 55. Re4 {[%emt 0:00:09]} Qd2 {[%emt 0:00:03]} 56. Be5 {[%emt 0:00:17]} Kf7 {[%emt 0:00:08]} 57. Bg3 {[%emt 0:00:01]} Qd3 {[%emt 0:00:06]} 58. h4 {[%emt 0:00:08]} gxh4 {[%emt 0:00:16]} 59. Rxh4 {[%emt 0:00:02]} Kg6 {[%emt 0:00:09]} 60. Rg4+ {[%emt 0:00:03]} Kf7 {[%emt 0:00:02]} 61. Bf4 {[%emt 0:00:01]} h5 {[%emt 0:00:15]} 62. Rg5 {[%emt 0:00:04]} Qh7 {[%emt 0:00:11]} 63. Kh3 {[%emt 0:00:25]} Ke8 {[%emt 0:00:19]} 64. Kh4 {[%emt 0:00:09]} Qc2 {[%emt 0:00:03]} 65. Kxh5 {[%emt 0:00:07]} Qh7+ {[%emt 0:00:01]} 66. Kg4 {[%emt 0:00:02]} Qh1 {[%emt 0:00:01]} 67. g3 {[%emt 0:00:06]} Kf7 {[%emt 0:00:03]} 68. Be5 {[%emt 0:00:06]} Qd1 {[%emt 0:00:07]} 69. Rg7+ {[%emt 0:00:18]} Ke8 {[%emt 0:00:01]} 70. Rg6 {[%emt 0:00:09]} Kf7 {[%emt 0:00:04]} 71. Rf6+ {[%emt 0:00:08]} Ke7 {[%emt 0:00:02]} 72. Kg5 {[%emt 0:00:07]} Qe1 {[%emt 0:00:11]} 73. Kf4 {[%emt 0:00:40]} Qb4+ {[%emt 0:00:08]} 74. Kg5 {[%emt 0:00:13]} Qe1 {[%emt 0:00:01]} 75. Kf4 {[%emt 0:00:14]} Qb4+ {[%emt 0:00:02]} 76. Kg5 {[%emt 0:00:07]} 1/2-1/2

[Event "FIDE Open World Rapid 2024"]
[Site "New York"]
[Date "2024.12.27"]
[Round "8.16"]
[White "Dubov, Daniil"]
[Black "Lomasov, Semyon"]
[Result "1/2-1/2"]
[ECO "E11"]
[WhiteElo "2693"]
[BlackElo "2559"]
[Annotator "ChessBase"]
[PlyCount "83"]
[EventDate "2024.12.14"]
[EventType "swiss"]
[EventCountry "USA"]
[SourceTitle "playchess.com"]
[Source "ChessBase"]
[SourceQuality "1"]
[TimeControl "900+10"]

1. d4 {[%emt 0:00:01]} e6 {[%emt 0:00:05]} 2. Nf3 {[%emt 0:00:03]} Nf6 {[%emt 0:00:02]} 3. c4 {[%emt 0:00:01]} Bb4+ {[%emt 0:00:08]} 4. Nbd2 {[%emt 0:00:02]} a5 {[%emt 0:00:00]} 5. g3 {[%emt 0:00:05]} O-O {[%emt 0:00:27]} 6. Bg2 {[%emt 0:00:01]} d5 {[%emt 0:00:02]} 7. O-O {[%emt 0:00:03]} a4 {[%emt 0:00:09]} 8. Qc2 {[%emt 0:00:30]} Nc6 {[%emt 0:00:20]} 9. a3 {[%emt 0:00:18]} Be7 {[%emt 0:00:40]} 10. Rd1 {[%emt 0:00:11]} Bd7 {[%emt 0:00:25]} 11. e4 {[%emt 0:00:43]} dxe4 {[%emt 0:00:29]} 12. Nxe4 {[%emt 0:00:02]} Nxe4 {[%emt 0:00:28]} 13. Qxe4 {[%emt 0:00:02]} Na5 {[%emt 0:01:06]} 14. Ne5 {[%emt 0:00:02]} Bf6 {[%emt 0:00:28]} 15. Be3 {[%emt 0:00:31]} Re8 {[%emt 0:01:24]} 16. Rd3 {[%emt 0:00:24]} Rb8 {[%emt 0:01:37]} 17. Rad1 {[%emt 0:01:04]} Bc6 {[%emt 0:00:15]} 18. Nxc6 {[%emt 0:00:52]} bxc6 {[%emt 0:00:01]} 19. c5 {[%emt 0:00:31]} Rxb2 {[%emt 0:00:23]} 20. Bd2 {[%emt 0:00:12]} Nb3 {[%emt 0:00:11]} 21. Bc3 {[%emt 0:02:18]} Ra2 {[%emt 0:00:44]} 22. Qxc6 {[%emt 0:00:44]} Rxa3 {[%emt 0:00:25]} 23. d5 {[%emt 0:00:59]} Bxc3 {[%emt 0:00:56]} 24. dxe6 {[%emt 0:01:54]} Nd4 {[%emt 0:03:09]} 25. exf7+ {[%emt 0:00:06]} Kxf7 {[%emt 0:00:02]} 26. Rxd4 {[%emt 0:00:15]} Bxd4 {[%emt 0:00:59]} 27. Bd5+ {[%emt 0:00:01]} Kf8 {[%emt 0:00:06]} 28. Rxd4 {[%emt 0:00:02]} g6 {[%emt 0:00:17]} 29. Rf4+ {[%emt 0:01:57]} Kg7 {[%emt 0:00:01]} 30. Rf7+ {[%emt 0:00:17]} Kh6 {[%emt 0:00:59]} 31. Rd7 {[%emt 0:00:15]} Qc8 {[%emt 0:01:17]} 32. Be6 {[%emt 0:00:25]} Ra1+ {[%emt 0:00:15]} 33. Kg2 {[%emt 0:00:07]} Qa8 {[%emt 0:00:01]} 34. Qxa8 {[%emt 0:00:27]} Rxa8 {[%emt 0:00:01]} 35. h4 {[%emt 0:00:20]} g5 {[%emt 0:00:34]} 36. Bf5 {[%emt 0:00:09]} gxh4 {[%emt 0:00:01]} 37. f4 {[%emt 0:00:09]} Rh8 {[%emt 0:00:31]} 38. g4 {[%emt 0:00:07]} Ra3 {[%emt 0:00:19]} 39. Rxc7 {[%emt 0:00:20]} Rg3+ {[%emt 0:00:27]} 40. Kf2 {[%emt 0:00:23]} a3 {[%emt 0:00:03]} 41. Ra7 {[%emt 0:01:51]} Rc3 {[%emt 0:00:09]} 42. Ra6+ {[%emt 0:01:57]} 1/2-1/2